bitfinex/quotes_BTCUSD_20220307
["timestamp","ask_amount","ask_price","bid_price","bid_amount"]
[1646645671868,0.78523,38208.0,38203.0,0.31848029]
[1646645672168,0.78523,38208.0,38205.0,0.393747]
[1646645672374,0.78523,38208.0,38203.0,0.31848029]
[1646645672817,0.78523,38208.0,38204.0,0.393747]
[1646645673017,0.78523,38208.0,38205.0,0.393747]
[1646645673219,0.78523,38208.0,38203.0,0.31848029]
[1646645673818,0.79123,38208.0,38203.0,0.130926]
[1646645674018,1.05764346,38208.0,38203.0,0.130926]
[1646645674217,0.21310131,38206.0,38203.0,0.130926]
[1646645674618,0.21310131,38206.0,38205.0,0.393747]
[1646645674819,0.21310131,38207.0,38203.0,0.393747]
[1646645675023,0.21310131,38207.0,38202.0,0.130926]
[1646645675227,0.21310131,38206.0,38203.0,0.393747]
[1646645676021,0.21310131,38207.0,38203.0,0.393747]
[1646645676265,0.50433131,38208.0,38203.0,0.393747]
[1646645676664,0.50433131,38208.0,38204.0,0.393747]
[1646645676864,0.50433131,38208.0,38202.0,0.43113685]
[1646645676865,0.49833131,38208.0,38202.0,0.43113685]
[1646645677065,0.49833131,38208.0,38203.0,0.393747]
[1646645677265,0.49833131,38208.0,38202.0,0.43113685]
[1646645677570,0.49833131,38208.0,38207.0,0.60348811]
[1646645677865,0.0210208,38210.0,38208.0,0.393747]
[1646645678065,0.0210208,38210.0,38206.0,0.0522]
[1646645678366,0.0210208,38210.0,38207.0,0.55697767]
[1646645678367,0.28743426,38210.0,38207.0,0.55697767]
[1646645678570,0.0210208,38210.0,38207.0,0.55697767]
[1646645679066,0.0210208,38210.0,38207.0,0.74661638]
[1646645679463,0.0210208,38210.0,38207.0,0.87753138]
[1646645679663,0.0210208,38210.0,38207.0,0.68789267]
[1646645679864,0.0210208,38210.0,38208.0,0.393747]
[1646645680118,0.0210208,38210.0,38207.0,0.16323067]
[1646645681514,0.0210208,38210.0,38208.0,0.393747]
[1646645681713,0.0240208,38210.0,38207.0,0.16323067]
[1646645681914,0.0240208,38210.0,38208.0,0.393747]
[1646645682114,0.0240208,38210.0,38207.0,0.16323067]
[1646645682313,0.0240208,38210.0,38208.0,0.393747]
[1646645682515,0.0240208,38210.0,38207.0,0.16323067]
[1646645682917,0.0210208,38210.0,38207.0,0.16323067]
[1646645683773,0.0230208,38210.0,38207.0,0.16323067]
[1646645684970,0.0210208,38210.0,38207.0,0.16323067]
[1646645685869,0.0230208,38210.0,38207.0,0.16323067]
[1646645686973,0.0210208,38210.0,38208.0,0.393747]
[1646645687615,0.0210208,38210.0,38207.0,0.16323067]
[1646645688314,0.0210208,38210.0,38208.0,0.393747]
[1646645688514,0.28743426,38210.0,38207.0,0.03940685]
[1646645688914,0.28743426,38210.0,38208.0,0.393747]
[1646645689115,0.28743426,38210.0,38207.0,0.03940685]
[1646645689315,0.0210208,38210.0,38202.0,0.00021125]
[1646645689515,0.0210208,38210.0,38198.0,0.157016]
[1646645689516,0.28743426,38210.0,38199.0,0.393747]
[1646645689716,0.28743426,38210.0,38198.0,0.02608]
[1646645689717,0.28743426,38210.0,38203.0,0.002]
[1646645690219,0.46959898,38210.0,38203.0,0.002]
[1646645690418,0.28743426,38210.0,38203.0,0.002]
[1646645690918,0.28743426,38210.0,38202.0,0.20319562]
[1646645690919,0.28743426,38210.0,38204.0,0.393747]
[1646645691115,0.28743426,38210.0,38202.0,0.20340686]
[1646645691366,0.28743426,38210.0,38203.0,0.393747]
[1646645691565,0.28743426,38210.0,38202.0,0.20340686]
[1646645691766,0.28743426,38210.0,38203.0,0.393747]
[1646645691966,0.28743426,38210.0,38206.0,0.16989292]
[1646645692266,0.28743426,38210.0,38208.0,0.20640113]
[1646645693073,0.28743426,38210.0,38209.0,0.693747]
[1646645693269,0.0210208,38210.0,38209.0,0.98735812]
[1646645693868,0.0210208,38210.0,38209.0,0.68735812]
[1646645694071,0.0210208,38210.0,38209.0,0.98735812]
[1646645695622,0.31966215,38219.0,38213.0,2.16387109]
[1646645695822,0.47973256,38234.0,38218.0,0.82218]
[1646645695823,0.31964256,38225.0,38218.0,0.82218]
[1646645696021,0.32010132,38232.0,38221.0,0.82218]
[1646645696219,0.1165,38236.0,38223.0,0.82218]
[1646645696420,0.1165,38236.0,38224.0,1.542047]
[1646645696421,0.01307,38235.0,38224.0,1.542047]
[1646645696721,0.01307,38235.0,38232.0,0.393747]
[1646645696919,0.0011,38238.0,38232.0,0.393747]
[1646645697320,0.0966,38233.0,38232.0,0.393747]
[1646645697524,0.0966,38233.0,38232.0,0.693747]
[1646645698320,0.0966,38233.0,38232.0,0.393747]
[1646645699475,0.00021129,38234.0,38232.0,0.393747]
[1646645700270,0.0011,38238.0,38232.0,0.393747]
[1646645700678,0.00021128,38235.0,38234.0,0.28922017]
[1646645700873,0.00021128,38235.0,38234.0,0.393747]
[1646645701374,0.0011,38242.0,38235.0,1.659161]
[1646645701573,0.0011,38242.0,38241.0,0.17468391]
[1646645701773,0.13944927,38242.0,38241.0,0.56843091]
[1646645701975,0.13944927,38242.0,38241.0,0.393747]
[1646645703023,0.13944927,38242.0,38236.0,0.36885277]
[1646645703229,0.0011,38242.0,38237.0,0.393747]
[1646645703428,0.13834927,38238.0,38235.0,0.167614]
[1646645703629,0.0011,38242.0,38235.0,0.167614]
[1646645703826,0.0011,38242.0,38235.0,0.117614]
[1646645704230,0.1899684,38241.0,38235.0,0.117614]
[1646645704426,0.0011,38242.0,38235.0,0.117614]
[1646645705527,0.00022846,38240.0,38235.0,0.117614]
[1646645705929,0.00022846,38240.0,38236.0,0.393747]
[1646645706269,0.0011,38242.0,38235.0,0.28248831]
[1646645706669,0.00022846,38240.0,38235.0,0.28248831]
[1646645707070,0.00022846,38240.0,38235.0,0.21707431]
[1646645707272,0.00022846,38240.0,38234.0,0.130831]
[1646645707470,0.0011,38242.0,38232.0,0.3]
[1646645707671,0.0011,38242.0,38231.0,0.28497051]
[1646645707869,0.0011,38242.0,38232.0,0.3]
[1646645707870,0.00022787,38239.0,38232.0,0.3]
[1646645708070,0.00022787,38239.0,38233.0,0.393747]
[1646645708273,0.00022787,38239.0,38233.0,0.19680876]
[1646645708477,0.00022787,38239.0,38234.0,0.459165]
[1646645708671,0.0011,38242.0,38234.0,0.065418]
[1646645708871,0.0011,38242.0,38233.0,0.1649996]
[1646645709072,0.00022787,38238.0,38233.0,0.1649996]
[1646645709274,0.00022787,38238.0,38234.0,0.393747]
[1646645709475,0.00022787,38238.0,38231.0,0.393747]
[1646645709676,0.00022787,38238.0,38225.0,0.92867]
[1646645709677,0.25,38236.0,38228.0,0.003]
[1646645709877,0.693747,38235.0,38228.0,0.003]
[1646645710128,0.393747,38231.0,38228.0,0.003]
[1646645710525,0.13834927,38229.0,38228.0,0.003]
[1646645710734,0.83209627,38229.0,38228.0,0.003]
[1646645710939,0.83209627,38229.0,38213.0,0.130892]
[1646645710940,0.02608,38227.0,38213.0,0.130892]
[1646645711141,0.02608,38227.0,38212.0,0.5]
[1646645711142,0.02608,38225.0,38212.0,0.5]
[1646645711331,0.25,38222.0,38210.0,0.00022805]
[1646645711527,0.46207693,38222.0,38211.0,0.18527127]
[1646645711728,0.3,38221.0,38211.0,0.18527127]
[1646645711926,0.17876647,38216.0,38211.0,0.18527127]
[1646645712127,0.17876647,38216.0,38212.0,0.393747]
[1646645712327,0.17876647,38216.0,38211.0,0.18527127]
[1646645713128,0.17876647,38216.0,38210.0,0.000228]
[1646645713533,0.17876647,38216.0,38209.0,0.393747]
[1646645713774,0.17876647,38216.0,38210.0,0.000228]
[1646645714176,0.3389584,38216.0,38210.0,0.000228]
[1646645714382,0.3,38215.0,38210.0,0.000228]
[1646645714774,0.3,38215.0,38206.0,0.005]
[1646645714975,0.3,38215.0,38210.0,0.00022801]
[1646645715375,0.42876647,38216.0,38210.0,0.00022801]
[1646645715575,0.42876647,38216.0,38210.0,0.06569201]
[1646645715775,0.1998,38212.0,38210.0,0.06569201]
[1646645715976,0.1998,38212.0,38210.0,0.065464]
[1646645716179,0.1998,38212.0,38210.0,0.06569201]
[1646645716975,0.42876647,38216.0,38210.0,0.06569201]
[1646645717175,0.42876647,38216.0,38210.0,0.065464]
[1646645717377,0.1998,38212.0,38210.0,0.26549042]
[1646645717621,0.1998,38212.0,38211.0,0.393747]
[1646645718421,0.1998,38212.0,38210.0,0.35063991]
[1646645718623,0.1998,38212.0,38210.0,0.35086814]
[1646645719023,0.1998,38212.0,38211.0,0.393747]
[1646645719421,0.1998,38212.0,38210.0,0.35086814]
[1646645719621,0.1998,38212.0,38210.0,0.35063991]
[1646645719821,0.1998,38212.0,38210.0,0.35086814]
[1646645720824,0.1998,38212.0,38210.0,0.35063991]
[1646645722383,0.25,38216.0,38210.0,0.35063991]
[1646645723384,0.25,38216.0,38210.0,0.3508679]
[1646645723585,0.25,38216.0,38210.0,0.51450377]
[1646645724387,0.25,38216.0,38210.0,0.51427578]
[1646645724585,0.25,38216.0,38210.0,0.51450377]
[1646645725621,0.25,38216.0,38210.0,0.22909987]
[1646645725820,0.25,38216.0,38210.0,0.22932788]
[1646645726222,0.25,38216.0,38210.0,0.06569201]
[1646645726825,0.25,38216.0,38210.0,0.065464]
[1646645727021,0.25,38216.0,38210.0,0.06569201]
[1646645727523,0.719827,38215.0,38210.0,0.00022801]
[1646645727724,0.32608,38215.0,38210.0,0.00022801]
[1646645727923,0.25,38216.0,38210.0,0.065462]
[1646645728124,0.25,38216.0,38210.0,0.06569001]
[1646645728766,0.46720351,38218.0,38210.0,0.28711871]
[1646645729068,0.21720351,38218.0,38210.0,0.2868907]
[1646645729271,0.36307,38220.0,38211.0,0.393747]
[1646645729466,0.35,38220.0,38214.0,0.16274542]
[1646645729666,0.25,38218.0,38214.0,0.29364842]
[1646645730066,0.25,38218.0,38214.0,0.28151484]
[1646645730467,0.15,38220.0,38214.0,0.28151484]
[1646645731067,0.3,38220.0,38214.0,0.28151484]
[1646645731268,0.3,38220.0,38215.0,0.393747]
[1646645731269,0.25,38220.0,38215.0,0.393747]
[1646645731469,0.1176,38223.0,38214.0,0.28151484]
[1646645732268,0.25,38220.0,38214.0,0.28151484]
[1646645732724,0.25,38220.0,38214.0,0.11876942]
[1646645733724,0.46868846,38220.0,38210.0,0.22165672]
[1646645733928,0.46868846,38220.0,38210.0,0.2214287]
[1646645734127,0.251,38220.0,38210.0,0.22165672]
[1646645734425,0.251,38220.0,38210.0,0.52165672]
[1646645735127,0.251,38220.0,38210.0,0.5214287]
[1646645735128,0.25,38220.0,38210.0,0.5214287]
[1646645735325,0.25,38220.0,38210.0,0.52165671]
[1646645736025,0.25,38220.0,38211.0,0.393747]
[1646645736272,0.3676,38223.0,38214.0,0.065451]
[1646645736471,0.3676,38223.0,38214.0,0.365451]
[1646645736672,0.3676,38223.0,38215.0,0.16030939]
[1646645736871,0.1176,38223.0,38215.0,0.16030939]
[1646645737571,0.25,38220.0,38215.0,0.16030939]
[1646645738573,0.1176,38223.0,38215.0,0.16030939]
[1646645738774,0.3676,38223.0,38215.0,0.16030939]
[1646645738973,0.3676,38223.0,38214.0,0.065451]
[1646645739175,0.16963528,38218.0,38214.0,0.065451]
[1646645744377,0.693747,38217.0,38213.0,0.065465]
[1646645744777,0.88940262,38217.0,38213.0,0.065465]
[1646645745177,0.5499,38217.0,38213.0,0.065465]
[1646645745573,0.2499,38217.0,38213.0,0.065465]
[1646645746074,0.2499,38217.0,38213.0,0.28891801]
[1646645746274,0.27608,38220.0,38213.0,0.28891801]
[1646645746476,0.25,38220.0,38213.0,0.28891801]
[1646645746672,0.55,38220.0,38213.0,0.28891801]
[1646645747273,0.75255877,38220.0,38213.0,0.28891801]
[1646645747525,0.393747,38219.0,38213.0,0.065465]
[1646645747718,0.54957405,38218.0,38213.0,0.065465]
[1646645747918,0.393747,38217.0,38213.0,0.065465]
[1646645748322,0.593547,38217.0,38213.0,0.065465]
[1646645749220,0.24914875,38216.0,38213.0,0.065465]
[1646645750026,0.3,38218.0,38207.0,0.00091213]
[1646645750418,0.20167857,38214.0,38208.0,0.393747]
[1646645750619,0.40599636,38215.0,38214.0,0.50698807]
[1646645750821,0.21793025,38215.0,38214.0,0.50698807]
[1646645751465,0.77588,38220.0,38214.0,0.50698807]
[1646645751667,0.4498,38220.0,38214.0,0.50698807]
[1646645751869,0.4498,38220.0,38214.0,0.7263539]
[1646645752068,0.1998,38220.0,38215.0,0.393747]
[1646645752268,0.1176,38223.0,38215.0,0.393747]
[1646645752467,0.1176,38223.0,38219.0,0.24715837]
[1646645752669,0.17537842,38226.0,38219.0,0.24715837]
[1646645752670,0.40125842,38226.0,38219.0,0.24715837]
[1646645753467,0.00022812,38224.0,38219.0,0.24715837]
[1646645753867,0.00022812,38224.0,38215.0,0.21401722]
[1646645754470,0.40125842,38226.0,38220.0,0.18537009]
[1646645754670,0.00022813,38221.0,38220.0,0.18537009]
[1646645755327,0.00022813,38221.0,38220.0,0.57911709]
[1646645755525,0.1998,38226.0,38220.0,0.57911709]
[1646645755723,0.1998,38226.0,38217.0,0.065436]
[1646645755924,0.00022795,38222.0,38215.0,0.21401722]
[1646645756124,0.00022795,38222.0,38216.0,0.393747]
[1646645756324,0.00022795,38222.0,38217.0,0.05]
[1646645756725,0.00022795,38222.0,38214.0,0.55698807]
[1646645756925,0.19170474,38223.0,38216.0,0.19945481]
[1646645757128,0.00022795,38221.0,38216.0,0.19945481]
[1646645757326,0.00022795,38221.0,38217.0,0.443747]
[1646645757525,0.00022795,38221.0,38216.0,0.19945481]
[1646645757829,0.00022795,38221.0,38214.0,0.50698807]
[1646645757830,0.00022795,38221.0,38214.0,0.55698807]
[1646645758027,0.19710894,38218.0,38214.0,0.55698807]
[1646645758230,0.19710894,38218.0,38215.0,0.393747]
[1646645758428,0.19710894,38218.0,38214.0,0.55698807]
[1646645758628,0.00022795,38221.0,38214.0,0.55698807]
[1646645758877,0.00022795,38221.0,38214.0,0.7428342]
[1646645759276,0.19170474,38223.0,38214.0,0.7428342]
[1646645759478,0.00022796,38221.0,38214.0,0.7428342]
[1646645759678,0.2165334,38220.0,38214.0,0.7428342]
[1646645761382,0.2165334,38220.0,38215.0,0.393747]
[1646645761680,0.2165334,38220.0,38214.0,0.7428342]
[1646645761880,0.2165334,38220.0,38215.0,0.393747]
[1646645762081,0.2165334,38220.0,38214.0,0.7428342]
[1646645762514,0.00022796,38221.0,38214.0,0.7428342]
[1646645762916,0.1179,38224.0,38215.0,0.393747]
[1646645763219,0.1179,38224.0,38218.0,0.393747]
[1646645763220,0.00022796,38221.0,38218.0,0.393747]
[1646645763619,0.00022796,38221.0,38218.0,0.05653308]
[1646645764017,0.15465925,38224.0,38218.0,0.05653308]
[1646645764216,0.00022796,38221.0,38218.0,0.22844937]
[1646645764616,0.00022796,38221.0,38216.0,0.393747]
[1646645764816,0.00022796,38221.0,38217.0,0.393747]
[1646645765023,0.00022796,38221.0,38216.0,0.393747]
[1646645765218,0.15465925,38224.0,38215.0,0.21805656]
[1646645765418,0.00022796,38221.0,38215.0,0.21805656]
[1646645765616,0.00022796,38221.0,38216.0,0.393747]
[1646645766581,0.21726565,38226.0,38215.0,0.21805656]
[1646645766779,0.00022796,38221.0,38216.0,0.393747]
[1646645767579,0.3,38225.0,38215.0,0.21805656]
[1646645767779,0.3,38225.0,38216.0,0.2375455]
[1646645767979,0.00022796,38221.0,38216.0,0.2375455]
[1646645768179,0.00022796,38221.0,38215.0,0.21805656]
[1646645768782,0.3,38225.0,38215.0,0.21805656]
[1646645769181,0.00022796,38221.0,38216.0,0.393747]
[1646645769583,0.00022796,38221.0,38215.0,0.21805656]
[1646645770128,0.4998,38225.0,38215.0,0.16805656]
[1646645770329,0.00022796,38221.0,38217.0,0.26054579]
[1646645770529,0.00022796,38221.0,38215.0,0.16805656]
[1646645770729,0.00022796,38221.0,38216.0,0.393747]
[1646645770931,0.00022796,38221.0,38215.0,0.16805656]
[1646645771129,0.00022796,38221.0,38216.0,0.393747]
[1646645771330,0.4998,38225.0,38215.0,0.16805656]
[1646645771529,0.00022796,38221.0,38217.0,0.24085655]
[1646645771729,0.00022796,38221.0,38215.0,0.16805656]
[1646645771930,0.00022796,38221.0,38216.0,0.393747]
[1646645772429,0.4998,38225.0,38217.0,0.393747]
[1646645772632,0.25,38216.0,38214.0,0.50698807]
[1646645773131,7.633e-05,38217.0,38215.0,0.393747]
[1646645773330,7.633e-05,38217.0,38214.0,0.50698807]
[1646645773768,7.633e-05,38217.0,38215.0,0.393747]
[1646645773968,7.633e-05,38217.0,38214.0,0.68611198]
[1646645776073,7.633e-05,38217.0,38214.0,0.50698807]
[1646645777273,7.633e-05,38217.0,38214.0,0.68967855]
[1646645777519,7.633e-05,38217.0,38214.0,0.68567855]
[1646645779120,7.633e-05,38217.0,38215.0,0.393747]
[1646645779321,7.633e-05,38217.0,38216.0,0.393747]
[1646645780724,7.633e-05,38217.0,38215.0,0.393747]
[1646645781970,7.633e-05,38217.0,38216.0,0.393747]
[1646645782166,7.633e-05,38217.0,38214.0,0.68567855]
[1646645782767,7.633e-05,38217.0,38215.0,0.393747]
[1646645787622,7.633e-05,38217.0,38216.0,0.393747]
[1646645787821,0.00107633,38217.0,38214.0,0.68567855]
[1646645788022,0.00107633,38217.0,38215.0,0.393747]
[1646645789272,7.633e-05,38217.0,38215.0,0.393747]
[1646645790571,7.633e-05,38217.0,38214.0,0.68567855]
[1646645790771,7.633e-05,38217.0,38215.0,0.393747]
[1646645792825,7.633e-05,38217.0,38214.0,0.68567855]
[1646645793024,7.633e-05,38217.0,38215.0,0.393747]
[1646645793225,7.633e-05,38217.0,38214.0,0.68567855]
[1646645793425,7.633e-05,38217.0,38215.0,0.393747]
[1646645793628,7.633e-05,38217.0,38216.0,0.393747]
[1646645793826,7.633e-05,38217.0,38215.0,0.393747]
[1646645794628,7.633e-05,38217.0,38214.0,0.68567855]
[1646645794824,7.633e-05,38217.0,38216.0,0.393747]
[1646645795024,7.633e-05,38217.0,38215.0,0.393747]
[1646645796268,7.633e-05,38217.0,38216.0,0.44697]
[1646645804877,7.633e-05,38217.0,38216.0,0.393747]
[1646645812986,7.633e-05,38217.0,38216.0,0.493747]
[1646645814587,7.633e-05,38217.0,38216.0,1.289847]
[1646645816625,7.633e-05,38217.0,38216.0,0.493747]
[1646645818023,7.633e-05,38217.0,38216.0,1.289847]
[1646645832245,7.633e-05,38217.0,38216.0,0.493747]
[1646645832447,7.633e-05,38217.0,38216.0,1.289847]
[1646645832845,7.633e-05,38217.0,38216.0,0.393747]
[1646645833048,7.633e-05,38217.0,38214.0,0.50298807]
[1646645833451,7.633e-05,38217.0,38214.0,0.50288886]
[1646645833876,0.1663277,38215.0,38214.0,0.50288886]
[1646645835176,0.06626633,38217.0,38214.0,0.50288886]
[1646645835379,7.633e-05,38217.0,38214.0,0.50288886]
[1646645836379,0.30007633,38217.0,38214.0,0.50288886]
[1646645836579,7.633e-05,38217.0,38214.0,0.50288886]
[1646645836779,0.30007633,38217.0,38214.0,0.50288886]
[1646645836982,0.01314633,38217.0,38214.0,0.50288886]
[1646645837280,7.633e-05,38217.0,38214.0,0.50288886]
[1646645838430,7.633e-05,38217.0,38214.0,0.68543659]
[1646645839230,7.633e-05,38217.0,38214.0,0.50288886]
[1646645842877,0.30007633,38217.0,38214.0,0.50288886]
[1646645843278,7.633e-05,38217.0,38214.0,0.50288886]
[1646645843985,0.00307633,38217.0,38214.0,0.50288886]
[1646645845333,7.633e-05,38217.0,38214.0,0.50288886]
[1646645845536,0.393747,38216.0,38214.0,0.50288886]
[1646645846133,0.443747,38216.0,38214.0,0.50288886]
[1646645847338,0.05,38216.0,38214.0,0.50288886]
[1646645848138,0.393747,38216.0,38214.0,0.50288886]
[1646645848338,7.633e-05,38217.0,38214.0,0.50288886]
[1646645848538,0.393747,38216.0,38214.0,0.50288886]
[1646645849403,0.393747,38216.0,38215.0,0.0999]
[1646645849601,0.693747,38216.0,38215.0,0.0999]
[1646645850004,0.696747,38216.0,38215.0,0.0999]
[1646645851403,0.693747,38216.0,38215.0,0.0999]
[1646645852006,0.02608,38213.0,38208.0,0.0011437]
[1646645852206,0.472027,38212.0,38208.0,0.0011437]
[1646645852405,0.393747,38210.0,38208.0,0.0011437]
[1646645852641,0.0522,38209.0,38208.0,0.0011437]
[1646645852841,0.0522,38209.0,38208.0,0.00091496]
[1646645853041,0.0522,38209.0,38202.0,0.001]
[1646645853042,0.38427087,38209.0,38202.0,0.001]
[1646645853241,0.21935795,38208.0,38207.0,0.00022863]
[1646645853445,0.91310495,38208.0,38207.0,0.00022863]
[1646645853640,0.57155795,38208.0,38207.0,0.00022863]
[1646645853840,0.68825795,38208.0,38207.0,0.00022863]
[1646645854042,0.79415795,38208.0,38207.0,0.00022863]
[1646645854242,1.31398495,38208.0,38202.0,0.001]
[1646645854447,0.05763077,38203.0,38202.0,0.001]
[1646645854646,1.01017215,38203.0,38202.0,0.001]
[1646645855046,1.44852142,38203.0,38202.0,0.001]
[1646645855243,1.47460142,38203.0,38202.0,0.001]
[1646645855444,1.67450142,38203.0,38202.0,0.001]
[1646645855645,1.78780142,38203.0,38202.0,0.001]
[1646645856584,1.69972694,38203.0,38202.0,0.001]
[1646645859487,1.54972694,38203.0,38202.0,0.001]
[1646645859686,1.69972694,38203.0,38202.0,0.001]
[1646645860139,1.54972694,38203.0,38202.0,0.001]
[1646645860340,1.34313256,38203.0,38202.0,0.001]
[1646645860541,0.92983256,38203.0,38202.0,0.001]
[1646645860742,1.22983256,38203.0,38202.0,0.001]
[1646645860944,0.92983256,38203.0,38202.0,0.001]
[1646645861240,1.22983256,38203.0,38202.0,0.001]
[1646645861642,0.90375256,38203.0,38202.0,0.001]
[1646645861845,0.51000556,38203.0,38202.0,0.001]
[1646645862049,0.16010556,38203.0,38202.0,0.001]
[1646645862244,0.0522,38203.0,38202.0,0.001]
[1646645863444,0.1022,38203.0,38202.0,0.001]
[1646645865281,0.743747,38203.0,38202.0,0.001]
[1646645865882,0.35,38203.0,38202.0,0.001]
[1646645866883,0.05,38203.0,38202.0,0.001]
[1646645867735,0.443747,38203.0,38202.0,0.001]
[1646645868035,0.743747,38203.0,38202.0,0.001]
[1646645868535,0.443747,38203.0,38202.0,0.001]
[1646645869134,0.05,38203.0,38202.0,0.001]
[1646645869437,0.1999,38204.0,38203.0,0.1]
[1646645869838,0.0999,38204.0,38203.0,0.1]
[1646645870236,0.493647,38204.0,38203.0,0.1]
[1646645870638,0.1999,38204.0,38203.0,0.1]
[1646645871037,0.0999,38204.0,38203.0,0.1]
[1646645871284,0.1499,38204.0,38203.0,0.1]
[1646645874686,0.543647,38204.0,38203.0,0.1]
[1646645875135,0.0999,38204.0,38203.0,0.1]
[1646645877235,0.1499,38204.0,38203.0,0.1]
[1646645877735,0.543647,38204.0,38203.0,0.1]
[1646645878132,0.1049,38204.0,38203.0,0.1]
[1646645878783,0.43098,38204.0,38203.0,0.1]
[1646645879184,0.824727,38204.0,38203.0,0.1]
[1646645879384,0.819727,38204.0,38203.0,0.1]
[1646645880186,0.969727,38204.0,38203.0,0.1]
[1646645881687,0.969727,38204.0,38203.0,0.09982756]
[1646645881886,0.669727,38204.0,38203.0,0.09982756]
[1646645882535,0.27598,38204.0,38203.0,0.09982756]
[1646645882737,0.17598,38204.0,38203.0,0.09982756]
[1646645883336,0.569727,38204.0,38203.0,0.09982756]
[1646645883539,0.669627,38204.0,38203.0,0.09982756]
[1646645883735,0.769627,38204.0,38203.0,0.09982756]
[1646645884135,0.669727,38204.0,38203.0,0.09982756]
[1646645884336,0.27598,38204.0,38203.0,0.09982756]
[1646645884735,0.1499,38204.0,38203.0,0.09982756]
[1646645886279,0.1549,38204.0,38203.0,0.09982756]
[1646645887482,0.1499,38204.0,38203.0,0.09982756]
[1646645888084,0.05,38204.0,38203.0,0.09982756]
[1646645888684,0.1691,38207.0,38203.0,0.09982756]
[1646645888884,0.05,38207.0,38203.0,0.09982756]
[1646645889285,1.05454795,38208.0,38203.0,0.09982756]
[1646645890440,1.05454795,38208.0,38204.0,0.00022865]
[1646645891340,1.05454795,38208.0,38203.0,0.09982756]
[1646645891539,1.05454795,38208.0,38204.0,0.00022865]
[1646645892640,1.05454795,38208.0,38203.0,0.09982756]
[1646645892840,1.05454795,38208.0,38204.0,0.00022865]
[1646645893240,0.83519,38208.0,38204.0,0.00022865]
[1646645893450,0.78519,38208.0,38205.0,0.393747]
[1646645893644,0.78519,38208.0,38206.0,0.0145098]
[1646645893919,0.78519,38208.0,38205.0,0.393747]
[1646645894120,0.78519,38208.0,38206.0,0.25]
[1646645894323,0.78519,38208.0,38207.0,1.031328]
[1646645894719,0.78519,38208.0,38207.0,0.8583259]
[1646645896024,0.78519,38208.0,38207.0,0.57978595]
[1646645896432,0.78519,38208.0,38207.0,0.393747]
[1646645899459,0.21607555,38208.0,38207.0,0.393747]
[1646645899858,0.21607555,38208.0,38207.0,0.59594079]
[1646645900259,0.2018266,38216.0,38207.0,0.59594079]
[1646645900459,0.09997633,38217.0,38211.0,0.07351928]
[1646645900658,0.05,38216.0,38207.0,0.20219379]
[1646645900861,0.05,38216.0,38208.0,0.393747]
[1646645901303,0.05,38216.0,38208.0,0.39397565]
[1646645901698,0.05,38216.0,38208.0,0.00022865]
[1646645902197,0.05,38216.0,38207.0,0.20219379]
[1646645902399,0.05,38216.0,38208.0,0.00021421]
[1646645903097,0.05,38216.0,38209.0,0.393747]
[1646645903699,0.05,38216.0,38210.0,0.07364129]
[1646645903902,0.05,38216.0,38215.0,0.66957362]
[1646645904100,0.01307,38220.0,38216.0,0.393747]
[1646645904299,0.12151413,38221.0,38210.0,0.34055194]
[1646645904300,0.00021413,38221.0,38210.0,0.34055194]
[1646645904499,0.00021413,38221.0,38211.0,0.393747]
[1646645904699,0.13087,38224.0,38211.0,0.393747]
[1646645904900,0.00021415,38221.0,38217.0,0.20931367]
[1646645905339,0.1999,38218.0,38217.0,0.20931367]
[1646645905534,0.1999,38218.0,38217.0,0.60306067]
[1646645905735,0.2499,38218.0,38217.0,0.60306067]
[1646645906237,0.1999,38218.0,38217.0,0.60306067]
[1646645907036,0.1999,38218.0,38217.0,0.393747]
[1646645907436,0.1999,38218.0,38214.0,0.19806793]
[1646645907637,0.1999,38218.0,38215.0,0.393747]
[1646645907836,0.00022043,38221.0,38215.0,0.393747]
[1646645908036,0.1998,38215.0,38214.0,0.19806793]
[1646645908236,0.1998,38215.0,38214.0,0.59181493]
[1646645908437,0.1998,38215.0,38214.0,0.393747]
[1646645909281,0.1998,38215.0,38214.0,0.67654087]
[1646645909681,0.1998,38215.0,38214.0,0.86855749]
[1646645910286,0.1998,38215.0,38214.0,0.67654087]
[1646645910489,0.1998,38215.0,38214.0,0.393747]
[1646645916993,0.1998,38215.0,38214.0,0.693747]
[1646645919692,0.1998,38215.0,38214.0,0.393747]
[1646645921434,0.1998,38215.0,38214.0,0.693747]
[1646645922035,0.00021234,38221.0,38215.0,0.393747]
[1646645922238,0.1998,38216.0,38215.0,0.393747]
[1646645923883,0.29435733,38224.0,38213.0,0.59044489]
[1646645924087,0.1998,38214.0,38213.0,0.59044489]
[1646645924286,0.1998,38214.0,38213.0,0.29044489]
[1646645924482,0.1998,38214.0,38213.0,0.68419189]
[1646645924686,0.1998,38214.0,38213.0,0.98419189]
[1646645926383,0.1998,38214.0,38213.0,1.05096647]
[1646645929458,0.00021233,38221.0,38215.0,0.36920307]
[1646645929658,0.00021233,38221.0,38216.0,0.393747]
[1646645929856,0.30742733,38224.0,38218.0,0.20095746]
[1646645930060,0.00021233,38221.0,38218.0,0.20095746]
[1646645930556,0.00021233,38221.0,38219.0,0.393747]
[1646645931057,0.18962733,38224.0,38218.0,0.20095746]
[1646645931295,0.00021235,38222.0,38218.0,0.20095746]
[1646645932297,0.18962733,38224.0,38218.0,0.20095746]
[1646645932497,0.00021235,38222.0,38218.0,0.20095746]
[1646645934500,0.00021235,38222.0,38215.0,0.36920307]
[1646645934701,0.17467502,38224.0,38215.0,0.36920307]
[1646645934901,0.00021235,38222.0,38215.0,0.36920307]
[1646645935737,0.20075502,38224.0,38215.0,0.36920307]
[1646645936138,0.00021234,38221.0,38216.0,0.393747]
[1646645936337,0.00021234,38221.0,38215.0,0.36920307]
[1646645936540,0.00021234,38221.0,38216.0,0.393747]
[1646645936941,0.20075502,38224.0,38215.0,0.36920307]
[1646645937340,0.00021234,38221.0,38215.0,0.36920307]
[1646645938152,0.17467502,38224.0,38215.0,0.36920307]
[1646645938541,0.00021234,38221.0,38216.0,0.393747]
[1646645938786,0.00021234,38221.0,38215.0,0.36920307]
[1646645938984,0.00021234,38221.0,38219.0,0.393747]
[1646645939183,0.00021234,38221.0,38215.0,0.66920307]
[1646645939384,0.17467502,38224.0,38216.0,0.393747]